[Event "FIDE Women's Grand Swiss 2023"]
[Site "Villa Marina, Douglas, Isle of Man, Isle Of Man"]
[Date "2023.11.05"]
[Round "11.23"]
[White "Nassr, Lina"]
[Black "Savitha, Shri B"]
[Result "0-1"]
[TimeControl "40/90 + 30 + 30s/move"]
[WhiteFideId "7908075"]
[BlackFideId "35061887"]
[WhiteElo "2066"]
[BlackElo "2375"]

1. d4 {[%clk 01:30:50]} {[%emt 00:00:09]} Nf6 {[%clk 01:30:40]} {[%emt
00:00:20]} 2. Nf3 {[%clk 01:31:09]} {[%emt 00:00:12]} g6 {[%clk 01:31:05]}
{[%emt 00:00:05]} 3. e3 {[%clk 01:31:31]} {[%emt 00:00:08]} Bg7 {[%clk
01:30:59]} {[%emt 00:00:36]} 4. c4 {[%clk 01:30:31]} {[%emt 00:01:29]} c5
{[%clk 01:30:52]} {[%emt 00:00:38]} 5. Nc3 {[%clk 01:29:04]} {[%emt 00:01:56]}
cxd4 {[%clk 01:30:59]} {[%emt 00:00:24]} 6. exd4 {[%clk 01:28:52]} {[%emt
00:00:43]} O-O {[%clk 01:31:16]} {[%emt 00:00:12]} 7. Be2 {[%clk 01:26:30]}
{[%emt 00:02:52]} d5 {[%clk 01:31:29]} {[%emt 00:00:17]} 8. O-O {[%clk
01:26:04]} {[%emt 00:00:55]} Nc6 {[%clk 01:30:56]} {[%emt 00:01:03]} 9. h3
{[%clk 01:23:46]} {[%emt 00:02:48]} Bf5 {[%clk 01:25:16]} {[%emt 00:06:11]} 10.
Be3 {[%clk 01:18:07]} {[%emt 00:06:08]} Rc8 {[%clk 01:24:03]} {[%emt 00:01:43]}
11. b3 {[%clk 01:10:33]} {[%emt 00:08:04]} Nb4 {[%clk 01:13:47]} {[%emt
00:10:46]} 12. Rc1 {[%clk 01:06:35]} {[%emt 00:04:29]} Ne4 {[%clk 01:11:50]}
{[%emt 00:02:26]} 13. Nxd5 {[%clk 00:52:00]} {[%emt 00:15:05]} Nxd5 {[%clk
01:09:44]} {[%emt 00:02:36]} 14. cxd5 {[%clk 00:51:19]} {[%emt 00:01:11]} Nc3
{[%clk 01:09:15]} {[%emt 00:01:00]} 15. Qd2 {[%clk 00:50:55]} {[%emt 00:00:54]}
Nxe2+ {[%clk 01:09:38]} {[%emt 00:00:07]} 16. Qxe2 {[%clk 00:51:20]} {[%emt
00:00:05]} Qxd5 {[%clk 01:10:00]} {[%emt 00:00:08]} 17. Rfd1 {[%clk 00:38:54]}
{[%emt 00:12:56]} Be4 {[%clk 01:08:14]} {[%emt 00:02:16]} 18. Rc5 {[%emt
00:06:32]} Bxf3 {[%clk 01:04:58]} {[%emt 00:00:01]} 19. Qxf3 {[%clk 00:36:39]}
{[%emt 00:00:28]} Qxf3 {[%clk 01:03:58]} {[%emt 00:01:30]} 20. gxf3 {[%clk
00:37:03]} {[%emt 00:00:06]} b6 {[%clk 01:03:41]} {[%emt 00:00:47]} 21. Rc4
{[%clk 00:32:38]} {[%emt 00:04:54]} f5 {[%clk 00:59:21]} {[%emt 00:04:50]} 22.
Rdc1 {[%clk 00:21:40]} {[%emt 00:11:28]} Rcd8 {[%clk 00:58:13]} {[%emt
00:01:39]} 23. Rc7 {[%clk 00:19:33]} {[%emt 00:02:37]} f4 {[%clk 00:54:52]}
{[%emt 00:03:51]} 24. Bd2 {[%clk 00:19:33]} {[%emt 00:00:29]} Bf6 {[%clk
00:48:33]} {[%emt 00:06:49]} 25. Bb4 {[%clk 00:12:09]} {[%emt 00:07:54]} Rfe8
{[%clk 00:47:06]} {[%emt 00:01:58]} 26. Rxa7 {[%clk 00:11:55]} {[%emt
00:00:44]} Rxd4 {[%clk 00:47:21]} {[%emt 00:00:15]} 27. Be1 {[%clk 00:10:47]}
{[%emt 00:01:38]} Red8 {[%clk 00:41:41]} {[%emt 00:06:09]} 28. Rac7 {[%clk
00:09:53]} {[%emt 00:01:24]} Rd3 {[%clk 00:35:16]} {[%emt 00:06:55]} 29. Rc8
{[%clk 00:06:57]} {[%emt 00:03:27]} Rxc8 {[%clk 00:33:33]} {[%emt 00:02:12]} 30.
Rxc8+ {[%clk 00:07:22]} {[%emt 00:00:05]} Kf7 {[%clk 00:33:59]} {[%emt
00:00:04]} 31. Kg2 {[%clk 00:07:18]} {[%emt 00:00:34]} Rd1 {[%clk 00:32:02]}
{[%emt 00:02:27]} 32. Bb4 {[%clk 00:07:34]} {[%emt 00:00:15]} Rb1 {[%clk
00:28:35]} {[%emt 00:03:57]} 33. Rc2 {[%clk 00:05:31]} {[%emt 00:02:32]} Bd4
{[%clk 00:28:43]} {[%emt 00:00:23]} 34. Bc3 {[%clk 00:03:21]} {[%emt 00:02:40]}
Bc5 {[%clk 00:28:40]} {[%emt 00:00:32]} 35. Rb2 {[%clk 00:02:14]} {[%emt
00:01:37]} Rd1 {[%clk 00:27:40]} {[%emt 00:01:31]} 36. Rd2 {[%clk 00:02:08]}
{[%emt 00:00:36]} Rc1 {[%clk 00:26:33]} {[%emt 00:01:37]} 37. Bd4 {[%clk
00:01:54]} {[%emt 00:00:44]} Bb4 {[%clk 00:25:13]} {[%emt 00:01:51]} 38. Re2
{[%clk 00:02:19]} {[%emt 00:00:05]} Rc6 {[%clk 00:24:00]} {[%emt 00:01:43]} 39.
h4 {[%clk 00:02:05]} {[%emt 00:00:44]} h5 {[%clk 00:12:40]} {[%emt 00:11:49]}
40. Re4 {[%clk 00:01:23]} {[%emt 00:01:13]} Bd2 {[%clk 00:12:44]} {[%emt
00:00:26]} 41. Be5 {[%clk 00:19:58]} {[%emt 00:11:54]} Re6 {[%clk 00:40:19]}
{[%emt 00:02:54]} 42. Bc7 {[%clk 00:19:29]} {[%emt 00:01:00]} b5 {[%clk
00:25:49]} {[%emt 00:15:00]} 43. Rxe6 {[%clk 00:08:07]} {[%emt 00:11:52]} Kxe6
{[%clk 00:26:18]} {[%emt 00:00:02]} 44. Kf1 {[%clk 00:07:24]} {[%emt 00:01:12]}
b4 {[%clk 00:25:48]} {[%emt 00:01:00]} 45. Ke2 {[%clk 00:07:31]} {[%emt
00:00:23]} Bc1 {[%clk 00:25:26]} {[%emt 00:00:53]} 46. Bd8 {[%clk 00:04:45]}
{[%emt 00:03:16]} Bb2 {[%clk 00:24:10]} {[%emt 00:01:46]} 47. Ba5 {[%clk
00:03:25]} {[%emt 00:01:50]} Bf6 {[%clk 00:20:46]} {[%emt 00:03:53]} 48. Bxb4
{[%clk 00:03:51]} {[%emt 00:00:05]} Bxh4 {[%clk 00:21:13]} {[%emt 00:00:03]} 49.
a4 {[%clk 00:03:43]} {[%emt 00:00:38]} Kd5 {[%clk 00:21:38]} {[%emt 00:00:05]}
50. Bd2 {[%clk 00:03:17]} {[%emt 00:00:54]} e5 {[%clk 00:19:55]} {[%emt
00:02:15]} 51. b4 {[%clk 00:03:12]} {[%emt 00:00:35]} Kc4 {[%clk 00:18:56]}
{[%emt 00:01:29]} 52. a5 {[%clk 00:02:43]} {[%emt 00:01:00]} Bd8 {[%clk
00:19:06]} {[%emt 00:00:19]} 53. Kf1 {[%clk 00:02:27]} {[%emt 00:00:45]} g5
{[%clk 00:19:08]} {[%emt 00:00:28]} 54. Kg2 {[%clk 00:02:36]} {[%emt 00:00:21]}
Bc7 {[%clk 00:17:20]} {[%emt 00:02:18]} 55. Be1 {[%clk 00:01:06]} {[%emt
00:02:00]} Bd8 {[%clk 00:12:48]} {[%emt 00:05:02]} 56. Kh3 {[%clk 00:00:50]}
{[%emt 00:00:46]} Kd3 {[%clk 00:09:55]} {[%emt 00:03:23]} 57. Kg2 {[%clk
00:00:40]} {[%emt 00:00:40]} g4 {[%clk 00:09:15]} {[%emt 00:01:10]} 58. b5
{[%clk 00:00:36]} {[%emt 00:00:34]} Ke2 {[%clk 00:09:11]} {[%emt 00:00:34]} 59.
Bb4 {[%clk 00:00:37]} {[%emt 00:00:29]} gxf3 {[%clk 00:08:33]} {[%emt
00:01:06]} 60. Kg1 {[%clk 00:01:07]} e4 {[%clk 00:08:20]} {[%emt 00:00:44]} 61.
b6 {[%clk 00:01:04]} {[%emt 00:00:34]} Bh4 {[%clk 00:07:47]} {[%emt 00:01:03]}
62. Bc5 {[%clk 00:00:38]} {[%emt 00:00:56]} e3 {[%clk 00:07:26]} {[%emt
00:00:51]} 63. a6 {[%clk 00:00:43]} {[%emt 00:00:25]} exf2+ {[%clk 00:07:48]}
{[%emt 00:00:07]} 64. Bxf2 {[%clk 00:00:55]} {[%emt 00:00:18]} Bxf2+ {[%clk
00:08:14]} {[%emt 00:00:05]} 65. Kh2 {[%clk 00:01:19]} {[%emt 00:00:06]} Bxb6
{[%clk 00:08:41]} {[%emt 00:00:03]} 66. a7 {[%clk 00:01:34]} {[%emt 00:00:15]}
Bxa7 {[%clk 00:09:04]} {[%emt 00:00:07]} 67. Kh1 {[%clk 00:01:47]} {[%emt
00:00:16]} f2 {[%clk 00:09:27]} {[%emt 00:00:08]} 68. Kh2 {[%clk 00:02:13]}
{[%emt 00:00:04]} h4 {[%clk 00:09:52]} {[%emt 00:00:04]} 0-1

[Event "FIDE Women's Grand Swiss 2023"]
[Site "Villa Marina, Douglas, Isle of Man, Isle Of Man"]
[Date "2023.11.05"]
[Round "11.24"]
[White "Danielian, Elina"]
[Black "Gomez Barrera, Javiera Belen"]
[Result "1-0"]
[TimeControl "40/90 + 30 + 30s/move"]
[WhiteFideId "13300210"]
[BlackFideId "3418723"]
[WhiteElo "2416"]
[BlackElo "2266"]

1. d4 {[%clk 01:30:57]} {[%emt 00:00:02]} d5 {[%clk 01:30:56]} {[%emt
00:00:05]} 2. c4 {[%clk 01:31:21]} {[%emt 00:00:06]} e6 {[%clk 01:31:23]}
{[%emt 00:00:03]} 3. Nf3 {[%clk 01:31:36]} {[%emt 00:00:15]} Nf6 {[%clk
01:31:46]} {[%emt 00:00:07]} 4. e3 {[%clk 01:31:29]} {[%emt 00:00:37]} b6
{[%clk 01:31:42]} {[%emt 00:00:34]} 5. Nbd2 {[%clk 01:31:33]} {[%emt 00:00:26]}
Bb7 {[%clk 01:30:44]} {[%emt 00:01:29]} 6. b3 {[%clk 01:31:49]} {[%emt
00:00:13]} Bd6 {[%clk 01:30:32]} {[%emt 00:00:42]} 7. Bd3 {[%clk 01:32:01]}
{[%emt 00:00:18]} O-O {[%clk 01:30:00]} {[%emt 00:01:01]} 8. Bb2 {[%clk
01:32:16]} {[%emt 00:00:15]} Nbd7 {[%clk 01:25:05]} {[%emt 00:05:25]} 9. Qc2
{[%clk 01:31:04]} {[%emt 00:01:43]} Re8 {[%clk 01:21:16]} {[%emt 00:04:19]} 10.
O-O {[%clk 01:30:33]} {[%emt 00:01:01]} h6 {[%clk 01:17:59]} {[%emt 00:03:47]}
11. e4 {[%clk 01:27:05]} {[%emt 00:03:59]} dxe4 {[%clk 01:17:19]} {[%emt
00:01:09]} 12. Nxe4 {[%clk 01:27:30]} {[%emt 00:00:04]} Be7 {[%clk 01:15:19]}
{[%emt 00:02:31]} 13. Rad1 {[%clk 01:27:28]} {[%emt 00:00:32]} Qc8 {[%clk
01:13:57]} {[%emt 00:01:52]} 14. Nxf6+ {[%clk 01:23:28]} {[%emt 00:04:30]} Bxf6
{[%clk 01:12:26]} {[%emt 00:02:00]} 15. Ne5 {[%clk 01:23:10]} {[%emt 00:00:49]}
c5 {[%clk 00:53:40]} {[%emt 00:19:16]} 16. Bh7+ {[%clk 01:23:00]} {[%emt
00:00:40]} Kf8 {[%clk 00:54:08]} {[%emt 00:00:01]} 17. f4 {[%clk 01:19:00]}
{[%emt 00:04:31]} cxd4 {[%clk 00:49:43]} {[%emt 00:04:56]} 18. Rxd4 {[%clk
01:11:25]} {[%emt 00:08:04]} Rd8 {[%clk 00:36:02]} {[%emt 00:14:12]} 19. Rfd1
{[%clk 00:44:26]} {[%emt 00:27:28]} Nxe5 {[%clk 00:30:12]} {[%emt 00:06:20]} 20.
Rxd8+ {[%clk 00:41:35]} {[%emt 00:03:21]} Bxd8 {[%clk 00:30:40]} {[%emt
00:00:02]} 21. fxe5 {[%clk 00:39:49]} {[%emt 00:02:16]} Be7 {[%clk 00:29:42]}
{[%emt 00:01:28]} 22. Rf1 {[%clk 00:40:01]} {[%emt 00:00:18]} Qc5+ {[%clk
00:14:04]} {[%emt 00:16:08]} 23. Kh1 {[%clk 00:40:25]} {[%emt 00:00:06]} Ke8
{[%clk 00:12:10]} {[%emt 00:02:24]} 24. Bg8 {[%clk 00:39:53]} {[%emt 00:01:01]}
Kd7 {[%clk 00:08:10]} {[%emt 00:04:30]} 25. Bxf7 {[%clk 00:40:13]} {[%emt
00:00:10]} Rf8 {[%clk 00:05:43]} {[%emt 00:02:58]} 26. Qd3+ {[%clk 00:23:31]}
{[%emt 00:17:11]} Kc7 {[%clk 00:06:12]} {[%emt 00:00:02]} 27. Bxe6 {[%clk
00:22:52]} {[%emt 00:01:09]} Rd8 {[%clk 00:04:57]} {[%emt 00:01:45]} 28. Qe2
{[%clk 00:23:16]} {[%emt 00:00:05]} Bg5 {[%clk 00:05:08]} {[%emt 00:00:20]} 29.
Bc3 {[%clk 00:23:23]} {[%emt 00:00:23]} Kb8 {[%clk 00:04:21]} {[%emt 00:01:17]}
30. Bg4 {[%clk 00:17:04]} {[%emt 00:06:48]} b5 {[%clk 00:03:54]} {[%emt
00:00:59]} 31. e6 {[%clk 00:16:10]} {[%emt 00:01:23]} Ka8 {[%clk 00:03:44]}
{[%emt 00:00:41]} 32. Bf3 {[%clk 00:14:44]} {[%emt 00:01:55]} 1-0